bitfinex/quotes_SOLUSD_20251030
["timestamp","ask_amount","ask_price","bid_price","bid_amount"]
[1761801500110,1.06018547,192.45,192.43,7.18190799]
[1761801500331,1.06018547,192.45,192.39,7.18190799]
[1761801500523,0.67,192.44,192.36,20.592]
[1761801500829,0.39018547,192.43,192.37,7.18190799]
[1761801501334,1.06018547,192.43,192.38,7.18190799]
[1761801501503,5.19696497,192.42,192.38,7.18190799]
[1761801501703,0.67,192.41,192.38,7.18190799]
[1761801502426,18.1893774,192.42,192.38,7.18190799]
[1761801502613,18.8993774,192.42,192.38,7.18190799]
[1761801502815,18.8993774,192.42,192.39,7.18190799]
[1761801503831,0.71,192.41,192.39,7.18190799]
[1761801504216,5.19750519,192.4,192.39,7.18190799]
[1761801504531,5.19750519,192.4,192.38,7.18190799]
[1761801505138,18.1893774,192.42,192.38,7.18190799]
[1761801505433,1.10018547,192.41,192.38,7.18190799]
[1761801505638,0.71,192.4,192.36,7.18190799]
[1761801506622,5.19777535,192.39,192.36,7.18190799]
[1761801506939,0.39018547,192.38,192.32,82.192]
[1761801507104,1.10018547,192.38,192.33,7.18190799]
[1761801507743,1.10018547,192.38,192.33,7.68190799]
[1761801507945,1.10018547,192.38,192.33,7.18190799]
[1761801508737,18.9041051,192.37,192.33,7.18190799]
[1761801509136,0.71,192.36,192.33,7.18190799]
[1761801509360,18.9041051,192.37,192.33,7.18190799]
[1761801509732,18.1941051,192.37,192.35,7.18190799]
[1761801510624,18.9041051,192.37,192.35,7.18190799]
[1761801511651,5.19782639,192.39,192.36,0.5]
[1761801511826,5.19782639,192.39,192.37,7.18190799]
[1761801512026,18.19226477,192.39,192.35,7.18190799]
[1761801512252,18.19226477,192.39,192.31,61.6]
[1761801512253,1.10018547,192.38,192.34,7.18190799]
[1761801512643,5.19858598,192.36,192.34,7.18190799]
[1761801514357,5.19833974,192.37,192.34,7.18190799]
[1761801514559,5.19833974,192.37,192.36,7.18190799]
[1761801514953,5.90833974,192.37,192.36,7.18190799]
[1761801515350,5.90833974,192.37,192.35,3.24803497]
[1761801515757,5.19833974,192.37,192.32,61.6]
[1761801515958,1.10018547,192.36,192.29,0.2]
[1761801516160,1.10018547,192.36,192.31,3.24803497]
[1761801516371,0.71,192.35,192.29,3.44803497]
[1761801516662,0.39018547,192.34,192.29,0.2]
[1761801516969,18.19788903,192.33,192.29,3.44803497]
[1761801517165,0.39018547,192.32,192.29,3.44803497]
[1761801517368,1.10018547,192.32,192.29,3.44803497]
[1761801518065,0.71,192.31,192.29,3.44803497]
[1761801518269,5.1999376,192.31,192.29,3.44803497]
[1761801518567,5.19971266,192.32,192.29,3.44803497]
[1761801518950,5.19971266,192.32,192.31,3.24803497]
[1761801519260,5.90971266,192.32,192.31,3.24803497]
[1761801520266,12.99849217,192.33,192.31,3.24803497]
[1761801520462,0.71,192.32,192.31,3.24803497]
[1761801521461,19.29902074,192.32,192.29,3.44803497]
[1761801521664,18.90883527,192.32,192.29,3.44803497]
[1761801522061,5.19966722,192.32,192.29,3.44803497]
[1761801523574,5.19966722,192.32,192.31,3.24803497]
[1761801524066,5.90966722,192.32,192.31,3.24803497]
[1761801524271,5.58957617,192.34,192.31,3.24803497]
[1761801524453,5.19880021,192.36,192.33,3.24803497]
[1761801524865,5.90880021,192.36,192.33,3.24803497]
[1761801525057,0.71,192.39,192.35,3.24803497]
[1761801525261,0.39018547,192.4,192.37,3.24803497]
[1761801525470,0.39018547,192.4,192.34,0.5]
[1761801525471,13.70143291,192.44,192.39,3.24803497]
[1761801525781,9.78882769,192.42,192.32,0.5]
[1761801525952,1.10018547,192.41,192.3,0.64216157]
[1761801526148,1.10018547,192.41,192.36,3.24803497]
[1761801526356,0.71,192.4,192.36,3.24803497]
[1761801526579,0.39018547,192.41,192.36,3.24803497]
[1761801526874,1.10018547,192.43,192.4,3.24803497]
[1761801527264,0.71,192.43,192.39,7.18439408]
[1761801527461,5.19696497,192.42,192.39,7.18439408]
[1761801527874,16.97322177,192.48,192.41,7.18439408]
[1761801527875,5.19534497,192.48,192.41,7.18439408]
[1761801528062,5.90534497,192.48,192.44,7.18439408]
[1761801528459,5.19509965,192.49,192.46,7.18439408]
[1761801528771,5.19426553,192.52,192.46,7.18439408]
[1761801528965,5.19426553,192.52,192.45,0.5]
[1761801528966,5.19426553,192.52,192.48,7.18439408]
[1761801529154,5.19426553,192.52,192.45,0.5]
[1761801529155,5.19426553,192.52,192.5,7.18439408]
[1761801529554,5.19394624,192.54,192.5,7.18439408]
[1761801529950,5.90394624,192.54,192.52,7.18439408]
[1761801530370,0.71,192.53,192.45,0.51961548]
[1761801530569,0.71,192.53,192.48,7.18439408]
[1761801530570,1.10018547,192.53,192.48,7.18439408]
[1761801530769,0.71,192.52,192.48,7.18439408]
[1761801530970,0.39018547,192.51,192.46,7.18439408]
[1761801531481,5.19507506,192.49,192.46,7.18439408]
[1761801532969,5.89507506,192.49,192.46,7.18439408]
[1761801533275,5.19507506,192.49,192.46,7.18439408]
[1761801533588,5.19479938,192.51,192.48,7.18439408]
[1761801533885,1.19018547,192.56,192.5,7.18439408]
[1761801534084,5.19346274,192.55,192.52,7.18439408]
[1761801534665,0.1,192.56,192.52,7.18439408]
[1761801534666,5.29318915,192.56,192.52,7.18439408]
[1761801535179,5.99318915,192.56,192.52,7.18439408]
[1761801535584,5.29318915,192.56,192.52,7.18439408]
[1761801535790,5.29318915,192.56,192.54,7.18439408]
[1761801536493,5.99320346,192.56,192.54,7.18439408]
[1761801536675,5.29320346,192.56,192.54,7.18439408]
[1761801537190,5.99320346,192.56,192.54,7.18439408]
[1761801537391,5.29320346,192.56,192.54,7.18439408]
[1761801540494,0.1,192.56,192.55,0.5]
[1761801540791,5.9932979,192.56,192.48,61.6]
[1761801541014,18.97626424,192.56,192.52,7.18439408]
[1761801541306,1.09018547,192.55,192.49,7.18439408]
[1761801541475,1.09018547,192.55,192.47,7.18439408]
[1761801541791,0.7,192.54,192.43,0.5]
[1761801542008,7.18439408,192.52,192.39,0.5]
[1761801542170,7.18439408,192.48,192.37,5.69816693]
[1761801542372,7.57457955,192.47,192.4,7.18439408]
[1761801542594,7.18439408,192.45,192.38,7.18439408]
[1761801542810,0.39018547,192.44,192.38,7.18439408]
[1761801542979,1.09018547,192.44,192.38,7.18439408]
[1761801543377,0.7,192.43,192.38,7.18439408]
[1761801544205,5.19696497,192.42,192.38,7.18439408]
[1761801544601,5.19696497,192.42,192.4,7.18439408]
[1761801544813,5.19670117,192.43,192.4,7.18439408]
[1761801545019,5.5865232,192.45,192.36,0.5]
[1761801545222,5.5865232,192.45,192.36,7.18439408]
[1761801545223,0.7,192.42,192.36,7.18439408]
[1761801545428,0.39018547,192.41,192.35,7.18439408]
[1761801545590,7.57457955,192.41,192.33,7.18439408]
[1761801545787,17.67322177,192.4,192.33,7.18439408]
[1761801546014,0.39018547,192.39,192.33,7.18439408]
[1761801546204,5.19804553,192.38,192.33,7.18439408]
[1761801546402,0.7,192.39,192.35,7.18439408]
[1761801546604,0.7,192.39,192.36,7.18439408]
[1761801546920,0.7,192.39,192.35,7.18439408]
[1761801547118,0.39018547,192.38,192.34,7.18439408]
[1761801547697,1.09018547,192.4,192.35,7.18439408]
[1761801547900,1.09018547,192.4,192.36,7.18439408]
[1761801548112,1.09018547,192.4,192.29,18.54369878]
[1761801548113,5.19804553,192.38,192.34,7.18439408]
[1761801548315,5.588231,192.38,192.34,7.18439408]
[1761801548611,19.28334483,192.38,192.34,7.18439408]
[1761801548818,0.7,192.37,192.34,7.18439408]
[1761801549619,0.7,192.37,192.32,20.592]
[1761801549620,5.19804553,192.38,192.35,7.18439408]
[1761801549993,5.89804553,192.38,192.35,7.18439408]
[1761801550193,0.7,192.38,192.35,7.18439408]
[1761801550505,0.7,192.37,192.35,7.18439408]
[1761801550701,0.7,192.37,192.34,7.18439408]
[1761801551512,0.7,192.37,192.35,7.18439408]
[1761801551711,5.89777535,192.39,192.36,7.18439408]
[1761801551901,0.7,192.38,192.35,7.18439408]
[1761801552094,5.89808459,192.38,192.35,7.18439408]
[1761801552315,0.7,192.38,192.35,7.18439408]
[1761801552696,0.7,192.38,192.36,7.18439408]
[1761801554016,0.7,192.38,192.31,21.092]
[1761801554201,5.19831574,192.37,192.35,7.18439408]
[1761801554600,0.67,192.36,192.35,7.18439408]
[1761801554803,5.19831574,192.37,192.35,7.18439408]
[1761801554804,5.86831574,192.37,192.35,7.18439408]
[1761801555598,1.06018547,192.41,192.36,7.18439408]
[1761801555793,0.67,192.4,192.37,7.18439408]
[1761801556215,5.86772804,192.4,192.37,7.18439408]
[1761801556617,0.67,192.39,192.37,7.18439408]
[1761801557196,1.06018547,192.39,192.3,20.592]
[1761801557429,0.67,192.38,192.33,7.18439408]
[1761801557632,0.39018547,192.37,192.33,7.18439408]
[1761801558010,0.67,192.36,192.33,7.18439408]
[1761801558236,5.19885625,192.35,192.33,7.18439408]
[1761801559035,0.67,192.38,192.34,7.18439408]
[1761801559217,0.39018547,192.37,192.34,7.18439408]
[1761801559420,1.06018547,192.4,192.34,7.18439408]
[1761801559956,0.67,192.39,192.35,7.18439408]
[1761801560248,0.67,192.39,192.34,7.18439408]
[1761801560249,5.19831574,192.37,192.34,7.18439408]
[1761801560617,5.86831574,192.37,192.34,7.18439408]
[1761801561015,5.19831574,192.37,192.34,7.18439408]
[1761801561216,5.86831574,192.37,192.34,7.18439408]
[1761801561459,5.86831574,192.37,192.34,5.19728921]
[1761801561817,5.19807611,192.38,192.35,5.19728921]
[1761801562017,5.19807611,192.38,192.36,5.19728921]
[1761801562231,5.19777535,192.39,192.36,5.19728921]
[1761801562422,9.78882769,192.36,192.29,0.2]
[1761801562726,5.19728921,192.32,192.29,0.2]
[1761801563038,5.58747468,192.31,192.29,0.2]
[1761801563417,0.72,192.3,192.29,0.2]
[1761801564131,1.11018547,192.3,192.29,0.2]
[1761801564333,6.31039347,192.3,192.29,0.2]
[1761801566739,21.29651037,192.3,192.29,0.2]
[1761801566922,9.78882769,192.29,192.21,5.19728921]
[1761801567122,5.58747468,192.28,192.21,5.19728921]
[1761801567320,1.11018547,192.28,192.2,0.5]
[1761801567627,0.72,192.27,192.22,5.19728921]
[1761801568446,5.20156046,192.25,192.19,20.592]
[1761801568656,5.20156046,192.25,192.2,5.19728921]
[1761801568853,1.11018547,192.24,192.19,20.592]
[1761801569022,0.72,192.24,192.21,5.19728921]
[1761801569353,25.99949546,192.32,192.23,5.19728921]
[1761801569354,6.31140353,192.27,192.23,5.19728921]
[1761801569646,24.51124123,192.27,192.2,5.19728921]
[1761801569840,0.72,192.26,192.2,5.19728921]
[1761801570042,0.39018547,192.25,192.2,5.19728921]
[1761801570239,0.39018547,192.25,192.19,25.78928921]
[1761801570444,5.20210164,192.23,192.19,20.592]
[1761801570642,5.59228711,192.23,192.18,5.19728921]
[1761801570944,0.72,192.22,192.18,5.19728921]
[1761801571324,0.72,192.22,192.17,20.592]
[1761801571642,1.11018547,192.22,192.16,0.1]
[1761801571850,1.11018547,192.22,192.16,5.29728921]
[1761801572146,0.72,192.21,192.16,5.29728921]
[1761801572443,5.20291363,192.2,192.16,5.29728921]
[1761801572761,5.5930991,192.2,192.16,5.29728921]
[1761801572956,0.72,192.19,192.16,5.29728921]
[1761801573629,0.72,192.19,192.17,5.19728921]
[1761801574251,5.20291363,192.2,192.17,5.19728921]
[1761801574757,5.92291363,192.2,192.17,5.19728921]
[1761801574964,5.20291363,192.2,192.17,5.19728921]
[1761801575174,0.39018547,192.21,192.17,5.20372586]
[1761801575465,0.72,192.2,192.16,5.29728921]
[1761801576775,5.20318434,192.19,192.16,5.29728921]
[1761801579251,0.72,192.18,192.16,0.1]
[1761801580361,1.11018547,192.18,192.16,0.1]
[1761801580750,0.72,192.17,192.16,0.1]
[1761801581366,5.92372586,192.17,192.16,0.1]
[1761801582542,8.00693699,192.17,192.16,0.1]
[1761801582749,5.92372586,192.17,192.16,0.1]
[1761801585381,0.39018547,192.21,192.16,2.18321113]
[1761801585550,1.11018547,192.21,192.17,2.08321113]
[1761801586048,0.72,192.21,192.18,2.08321113]
[1761801586276,5.92267594,192.21,192.17,2.08321113]
[1761801586477,0.72,192.2,192.18,2.08321113]
[1761801586676,0.72,192.2,192.17,2.08321113]
[1761801587045,0.39018547,192.19,192.16,0.1]
[1761801587250,0.72,192.18,192.16,0.1]
[1761801588372,5.20372586,192.17,192.16,0.1]
[1761801588675,5.59391133,192.17,192.16,0.1]
[1761801588855,6.31391133,192.17,192.16,0.1]
[1761801592161,11.52280888,192.17,192.16,0.1]
[1761801592678,16.10273902,192.17,192.16,0.1]
[1761801592979,21.31163657,192.17,192.16,0.1]
[1761801594756,16.10273902,192.17,192.16,0.1]
[1761801594971,21.31163657,192.17,192.16,0.1]
[1761801596178,6.31391133,192.17,192.16,0.1]
[1761801598780,0.39018547,192.17,192.16,0.1]
[1761801599079,5.59364056,192.18,192.16,0.1]
[1761801599279,0.67,192.17,192.16,0.1]
[1761801600153,5.59333378,192.2,192.16,5.30889755]
[1761801600368,0.39018547,192.28,192.19,5.20889755]
[1761801600579,0.67,192.28,192.21,5.20889755]
[1761801600781,5.20889755,192.23,192.16,0.1]
[1761801600985,0.39018547,192.22,192.16,5.30889755]
[1761801601185,6.26908302,192.22,192.16,0.1]
[1761801601395,5.20889755,192.2,192.16,0.1]
[1761801601575,0.39018547,192.19,192.16,0.1]
[1761801601885,1.06018547,192.19,192.16,0.1]
[1761801602181,0.39018547,192.19,192.16,0.1]
[1761801602376,5.87345509,192.18,192.16,0.1]
[1761801602693,0.39018547,192.17,192.16,0.1]
[1761801602869,5.20889755,192.16,192.15,0.2]
[1761801603383,5.87889755,192.16,192.15,0.2]
[1761801603784,15.66772524,192.16,192.15,1e-08]
[1761801604567,20.8717219,192.16,192.15,1e-08]
[1761801605783,30.38082769,192.1,192.07,0.1]
[1761801605985,14.99772524,192.08,192.07,0.1]
[1761801606390,22.55871523,192.08,192.07,0.1]
[1761801606706,17.34981768,192.08,192.07,0.1]
[1761801606881,22.55871523,192.08,192.07,0.1]
[1761801607282,15.66772524,192.08,192.07,0.1]
[1761801607690,20.87388933,192.08,192.07,0.1]
[1761801608811,5.20616409,192.08,192.07,0.1]
[1761801609190,5.87616409,192.08,192.07,0.1]
[1761801609584,11.08506164,192.08,192.07,0.1]
[1761801610090,20.87388933,192.08,192.07,0.1]
[1761801612603,0.39018547,192.09,192.07,0.1]
[1761801612974,5.20616409,192.08,192.07,0.1]
[1761801613481,5.87616409,192.08,192.07,0.1]
[1761801614001,5.20616409,192.08,192.07,0.1]
[1761801614202,0.39018547,192.1,192.07,0.7]
[1761801614406,5.2053511,192.11,192.07,0.1]
[1761801614784,0.39018547,192.12,192.08,2.08543419]
[1761801614785,5.20509708,192.12,192.08,2.08543419]
[1761801615004,5.20453835,192.14,192.07,5.9064099]
[1761801615205,18.88588424,192.14,192.09,2.08543419]
[1761801615506,18.88588424,192.14,192.07,0.7]
[1761801615507,18.21588424,192.14,192.08,5.21118441]
[1761801615678,18.21588424,192.14,192.08,5.81118441]
[1761801616319,5.20453835,192.14,192.1,5.21118441]
[1761801616475,0.39018547,192.18,192.13,5.21118441]
[1761801616679,18.60227829,192.18,192.13,5.21118441]
[1761801616904,5.21118441,192.17,192.11,0.6]
[1761801617091,5.60136988,192.16,192.09,5.21118441]
[1761801617289,0.39018547,192.16,192.1,5.21118441]
[1761801617495,0.39018547,192.16,192.11,5.21118441]
[1761801617698,5.21118441,192.14,192.07,0.7]
[1761801617882,5.21118441,192.12,192.07,0.1]
[1761801618091,0.39018547,192.11,192.07,0.1]
[1761801618501,5.21118441,192.1,192.07,0.1]
[1761801618694,5.60136988,192.09,192.07,0.1]
[1761801619012,10.4173485,192.08,192.07,0.1]
[1761801619315,5.87616409,192.08,192.07,0.1]
[1761801620210,5.20616409,192.08,192.07,0.1]
[1761801622892,0.39018547,192.09,192.07,0.1]
[1761801623092,5.20562207,192.1,192.07,0.7]
[1761801623298,0.39018547,192.12,192.07,7.90897127]
[1761801623921,5.59545345,192.12,192.07,7.90897127]
[1761801624220,5.59545345,192.12,192.07,7.30897127]
[1761801624432,5.59545345,192.12,192.08,0.6]
[1761801624603,5.59545345,192.12,192.08,7.80897127]
[1761801624604,5.20526798,192.12,192.08,7.80897127]
[1761801624805,5.20345509,192.18,192.11,7.20897127]
[1761801625002,5.59417398,192.17,192.13,7.20897127]
[1761801625216,5.59417398,192.17,192.12,7.20897127]
[1761801625526,5.59417398,192.17,192.11,7.20897127]
[1761801626607,7.20897127,192.14,192.07,7.90897127]
[1761801626813,0.39018547,192.13,192.08,7.20897127]
[1761801627011,0.39018547,192.13,192.09,7.20897127]
[1761801627530,0.39018547,192.16,192.12,7.20897127]
[1761801628229,1.08018547,192.16,192.1,7.80897127]
[1761801628524,5.20426749,192.15,192.1,7.20897127]
[1761801628707,5.89426749,192.15,192.1,7.20897127]
[1761801628921,7.20897127,192.13,192.07,0.1]
[1761801629108,0.39018547,192.12,192.07,7.30897127]
[1761801629621,0.39018547,192.12,192.07,7.90897127]
[1761801629827,1.08018547,192.14,192.08,7.80897127]
[1761801630412,18.21683234,192.13,192.08,7.80897127]
[1761801630627,7.20897127,192.09,192.07,0.1]
[1761801630806,0.39018547,192.08,192.07,0.1]
[1761801631005,1.08018547,192.08,192.07,0.1]
[1761801631515,0.39018547,192.08,192.07,0.1]
[1761801631710,0.39018547,192.09,192.07,0.1]
[1761801631906,1.08018547,192.12,192.07,0.1]
[1761801632500,18.90872885,192.11,192.07,0.1]
[1761801632837,13.01056986,192.16,192.1,7.20897127]
[1761801633002,0.39018547,192.15,192.1,7.20897127]
[1761801633208,5.20399666,192.16,192.12,7.20897127]
[1761801633516,5.89399666,192.16,192.12,7.20897127]
[1761801634223,5.20399666,192.16,192.12,7.20897127]
[1761801634535,18.21398833,192.16,192.11,7.20897127]
[1761801635243,7.20897127,192.14,192.07,0.7]
[1761801635539,0.39018547,192.13,192.07,7.90897127]
[1761801635735,0.39018547,192.13,192.08,7.20897127]
[1761801636121,0.39018547,192.13,192.08,7.80897127]
[1761801636525,5.20508015,192.12,192.08,7.80897127]
[1761801637238,9.78882769,192.17,192.08,7.80897127]
[1761801637239,13.01048639,192.16,192.11,7.20897127]
[1761801637442,18.60227829,192.18,192.14,7.20897127]
[1761801637615,19.29227829,192.18,192.14,7.20897127]
[1761801638017,18.21209282,192.18,192.14,7.20897127]
[1761801640629,18.21209282,192.18,192.12,7.20897127]
[1761801640630,1.08018547,192.17,192.12,7.20897127]
[1761801640818,0.69,192.16,192.1,21.192]
[1761801641032,0.69,192.16,192.11,7.20897127]
[1761801641223,0.39018547,192.17,192.13,7.20897127]
[1761801641839,5.59364056,192.18,192.13,7.80897127]
[1761801642349,0.39018547,192.25,192.17,27.80097127]
[1761801642565,5.20128991,192.26,192.22,7.20897127]
[1761801642719,7.59915674,192.25,192.18,7.20897127]
[1761801642921,8.28915674,192.25,192.18,7.20897127]
[1761801643142,8.28915674,192.25,192.19,7.20897127]
[1761801643341,0.69,192.24,192.19,7.20897127]
[1761801643516,0.39018547,192.23,192.19,7.20897127]
[1761801643916,0.69,192.24,192.19,7.20897127]
[1761801644347,0.69,192.24,192.2,7.20897127]
[1761801644843,5.20210164,192.23,192.2,7.20897127]
[1761801646140,5.20210164,192.23,192.19,7.20897127]
[1761801646546,5.59192824,192.25,192.2,7.20897127]
[1761801646744,6.28192824,192.25,192.2,7.20897127]
[1761801647137,0.69,192.24,192.2,7.20897127]
[1761801647759,6.28093437,192.28,192.22,7.20897127]
[1761801647944,13.48990564,192.28,192.22,7.20897127]
[1761801648144,0.69,192.27,192.22,7.20897127]
[1761801649041,5.20128991,192.26,192.22,7.20897127]
[1761801649235,0.39018547,192.28,192.21,5.2025805]
[1761801649550,13.38935352,192.32,192.25,7.20897127]
[1761801649742,0.69,192.3,192.24,7.20897127]
[1761801649952,0.39018547,192.29,192.24,7.20897127]
[1761801650159,0.39018547,192.29,192.2,0.74216157]
[1761801650364,0.39018547,192.29,192.24,7.20897127]
[1761801650875,1.08018547,192.29,192.24,7.20897127]
[1761801651066,1.08018547,192.29,192.19,21.11231843]
[1761801651067,18.20356788,192.27,192.19,20.592]
[1761801651271,0.39018547,192.26,192.21,7.20897127]
[1761801651474,19.28375335,192.27,192.21,7.20897127]
[1761801652269,5.20101939,192.27,192.23,7.20897127]
[1761801652573,13.48939247,192.3,192.23,7.20897127]
[1761801652777,7.20897127,192.24,192.15,7.20897127]
[1761801652958,7.20897127,192.21,192.14,0.6]
[1761801653149,5.20318434,192.19,192.14,7.80897127]
[1761801653353,18.21114521,192.19,192.14,0.6]
[1761801653577,18.21114521,192.19,192.15,7.20897127]
[1761801653775,18.21114521,192.19,192.16,7.20897127]
[1761801653980,5.20318434,192.19,192.16,7.80897127]
[1761801654281,5.20318434,192.19,192.17,7.20897127]
[1761801654490,5.20256671,192.22,192.17,7.20897127]
[1761801654778,5.20256671,192.22,192.18,7.20897127]
[1761801654976,18.20849741,192.22,192.18,7.80897127]
[1761801655198,13.0059307,192.22,192.18,7.80897127]
[1761801655400,5.20210164,192.23,192.19,7.80897127]
[1761801655580,5.20210164,192.23,192.2,7.20897127]
[1761801657087,0.68,192.22,192.17,7.20897127]
[1761801657254,13.68354988,192.26,192.2,7.20897127]
[1761801657455,5.20156046,192.25,192.21,7.20897127]
[1761801657660,5.20156046,192.25,192.21,0.6]
[1761801657860,18.20546163,192.25,192.2,7.20897127]
[1761801658160,18.20546163,192.25,192.2,7.80897127]
[1761801658867,18.88546163,192.25,192.19,7.20897127]
[1761801659395,19.2756471,192.25,192.19,7.20897127]
[1761801659561,19.2756471,192.25,192.15,20.73416157]
[1761801659562,7.88897127,192.24,192.15,20.73416157]
[1761801659767,7.59915674,192.23,192.15,21.192]
[1761801659986,7.20897127,192.2,192.13,7.20897127]
[1761801660491,7.88897127,192.2,192.13,20.592]
[1761801660666,7.88897127,192.2,192.13,27.80097127]
[1761801660986,0.68,192.2,192.13,20.592]
[1761801661209,8.27915674,192.19,192.12,7.20897127]
[1761801661391,18.21304052,192.17,192.11,27.80097127]
[1761801661701,18.60322599,192.17,192.11,27.80097127]
[1761801661896,18.21304052,192.17,192.12,7.20897127]
[1761801662280,26.01371711,192.21,192.15,7.20897127]
[1761801662281,0.39018547,192.2,192.15,7.20897127]
[1761801662487,1.07018547,192.21,192.15,7.20897127]
[1761801662682,21.28576409,192.21,192.14,7.20897127]
[1761801662997,21.28576409,192.21,192.1,61.6]
[1761801662998,7.20897127,192.17,192.1,61.6]
[1761801663174,7.20897127,192.14,192.07,7.30897127]
[1761801663382,7.59915674,192.13,192.07,0.1]
[1761801663584,5.20508015,192.12,192.07,0.1]
[1761801663892,18.21778054,192.12,192.07,0.1]
[1761801664074,18.89778054,192.12,192.07,0.1]
[1761801664271,18.21778054,192.12,192.07,0.1]
[1761801664597,7.20897127,192.1,192.07,0.1]
[1761801664912,37.58979896,192.08,192.07,1e-08]
[1761801665095,37.58979896,192.08,191.98,7.20897127]
[1761801665303,1.07018547,192.07,191.98,7.20897127]
[1761801665514,18.22347182,192.06,191.98,7.20897127]
[1761801665802,7.20897127,192.04,191.96,0.1]
[1761801666006,1.07018547,192.03,191.96,7.30897127]
[1761801666378,8.27915674,192.03,191.96,7.30897127]
[1761801667511,1.07018547,192.03,191.97,7.20897127]
[1761801667685,5.88754332,192.03,191.98,7.20897127]
[1761801667886,6.27772879,192.03,191.98,7.20897127]
[1761801668080,5.59772879,192.03,191.98,7.20897127]
[1761801668287,5.5968917,192.06,192.0,7.20897127]
[1761801668489,5.5968917,192.06,192.01,7.20897127]
[1761801668728,5.88643691,192.07,192.02,7.20897127]
[1761801669004,5.88643691,192.07,191.97,20.592]
[1761801669005,0.68,192.06,192.01,7.20897127]
[1761801669223,0.39018547,192.05,191.98,27.80097127]
[1761801669586,5.20724848,192.04,191.99,27.80097127]
[1761801670113,5.88724848,192.04,191.98,7.20897127]
[1761801670991,5.88724848,192.04,191.97,21.192]
[1761801670992,5.20724848,192.04,192.0,7.20897127]
[1761801671423,5.20724848,192.04,191.99,7.20897127]
[1761801671728,5.59714854,192.06,192.0,7.20897127]
[1761801672024,6.27714854,192.06,192.0,7.20897127]
[1761801672608,5.88696307,192.06,192.01,7.20897127]
[1761801673127,5.88696307,192.06,191.97,20.592]
[1761801673128,1.04018547,192.05,191.99,7.20897127]
[1761801674004,5.85724848,192.04,191.97,25.80111665]
[1761801674207,5.85724848,192.04,191.99,7.20897127]
[1761801674530,80.38082769,192.11,192.0,7.20897127]
[1761801674531,7.85897127,192.07,192.0,7.20897127]
[1761801674737,0.65,192.11,192.06,7.20897127]
[1761801674904,0.65,192.1,192.06,7.20897127]
[1761801675101,0.65,192.1,192.05,7.20897127]
[1761801675427,0.65,192.1,192.06,6.89098999]
[1761801676261,5.85578455,192.1,192.06,6.89098999]
[1761801676442,5.85564801,192.1,192.06,6.89098999]
[1761801676610,7.85897127,192.09,192.06,6.89098999]
[1761801676811,8.24915674,192.09,192.06,6.89098999]
[1761801677004,0.65,192.08,192.06,6.89098999]
[1761801677504,19.25988865,192.1,192.06,6.89098999]
[1761801677729,0.65,192.09,192.06,6.89098999]
[1761801678410,5.20616409,192.08,192.06,6.89098999]
[1761801678731,6.24474796,192.14,192.07,7.80897127]
[1761801678904,6.24474796,192.14,192.08,7.20897127]
[1761801678905,19.25609385,192.14,192.08,7.20897127]
[1761801679909,19.25609385,192.14,192.07,7.80897127]
[1761801680330,6.24474796,192.14,192.07,7.80897127]
[1761801680527,19.25609385,192.14,192.07,7.80897127]
[1761801680732,6.24474796,192.14,192.08,7.20897127]
[1761801681542,0.65,192.13,192.07,7.20897127]
[1761801682520,5.20508015,192.12,192.08,7.20897127]
[1761801682717,0.39018547,192.14,192.08,7.20897127]
[1761801682944,1.09018547,192.14,192.08,7.20897127]
[1761801683322,5.59461386,192.15,192.09,5.81094272]
[1761801683522,26.01311028,192.22,192.12,5.21094272]
[1761801683523,5.20345509,192.18,192.12,5.21094272]
[1761801683767,18.91209282,192.18,192.12,5.21094272]
[1761801684123,0.7,192.17,192.12,5.21094272]
[1761801684825,5.20399666,192.16,192.12,5.21094272]
[1761801685236,0.7,192.15,192.12,5.21094272]
[1761801685450,5.20399666,192.16,192.12,5.21094272]
[1761801685650,5.90399666,192.16,192.12,5.21094272]
[1761801685856,1.09018547,192.15,192.1,5.21094272]
[1761801686058,1.09018547,192.15,192.09,5.21094272]
[1761801686363,0.7,192.14,192.08,5.21094272]
[1761801687067,5.20480924,192.13,192.08,5.21094272]
[1761801687259,5.59499471,192.13,192.06,12.10193271]
[1761801687459,5.59499471,192.13,192.07,5.21094272]
[1761801687670,0.7,192.12,192.07,5.21094272]
[1761801688455,5.2053511,192.11,192.07,5.21094272]
[1761801688674,5.2053511,192.11,192.06,6.89098999]
[1761801688675,18.60891432,192.11,192.06,6.89098999]
[1761801688970,5.91094272,192.1,192.06,6.89098999]
[1761801689174,0.39018547,192.09,192.06,6.89098999]